[Event "*** Titled Tuesday Blitz"]
[Site "Chess.com"]
[Date "2021.02.02"]
[Round "8"]
[White "TokChess"]
[Black "Kostya_Nikologorskiy"]
[Result "1-0"]
[WhiteElo "2502"]
[BlackElo "2660"]
[TimeControl "180+1"]
[EndTime "11:32:31 PST"]
[Termination "TokChess won by resignation"]

1. d4 {[%clk 0:03:00.5]} 1... d5 {[%clk 0:02:58.6]} 2. Bf4 {[%clk 0:03:00.4]}
2... Nf6 {[%clk 0:02:55.4]} 3. e3 {[%clk 0:03:00.5]} 3... c5 {[%clk 0:02:54.5]}
4. c3 {[%clk 0:02:59.7]} 4... Nc6 {[%clk 0:02:54.8]} 5. Nf3 {[%clk 0:02:59.1]}
5... Qb6 {[%clk 0:02:53.4]} 6. Qb3 {[%clk 0:02:57.7]} 6... c4 {[%clk 0:02:52.3]}
7. Qc2 {[%clk 0:02:47.7]} 7... g6 {[%clk 0:02:42.1]} 8. Be2 {[%clk 0:02:46]}
8... Bf5 {[%clk 0:02:40.3]} 9. Qc1 {[%clk 0:02:46.2]} 9... Nh5 {[%clk
0:02:16.7]} 10. Bg5 {[%clk 0:02:36.2]} 10... h6 {[%clk 0:02:11.6]} 11. Bh4
{[%clk 0:02:36.2]} 11... g5 {[%clk 0:02:12.1]} 12. Bg3 {[%clk 0:02:36.5]} 12...
Nxg3 {[%clk 0:02:10.3]} 13. hxg3 {[%clk 0:02:37.4]} 13... Bg7 {[%clk 0:02:10.4]}
14. Nbd2 {[%clk 0:02:34.5]} 14... Rc8 {[%clk 0:01:53.7]} 15. Bd1 {[%clk
0:02:27.7]} 15... e5 {[%clk 0:01:20.8]} 16. dxe5 {[%clk 0:02:28.6]} 16... Nxe5
{[%clk 0:01:21.4]} 17. Nxe5 {[%clk 0:02:28.7]} 17... Bxe5 {[%clk 0:01:22.3]} 18.
Nf3 {[%clk 0:02:27.1]} 18... Bg7 {[%clk 0:01:16.4]} 19. Bc2 {[%clk 0:02:26.4]}
19... Bg4 {[%clk 0:01:09.3]} 20. Ba4+ {[%clk 0:02:14.1]} 20... Kd8 {[%clk
0:00:59.5]} 21. Qd2 {[%clk 0:02:08.1]} 21... Kc7 {[%clk 0:00:59.5]} 22. Qxd5
{[%clk 0:01:50.2]} 22... Qxb2 {[%clk 0:00:37.6]} 23. O-O {[%clk 0:01:48.5]}
23... Be6 {[%clk 0:00:37.4]} 24. Qd1 {[%clk 0:01:31.6]} 24... Qxc3 {[%clk
0:00:33.4]} 25. Rb1 {[%clk 0:01:23]} 25... Rhd8 {[%clk 0:00:31.2]} 26. Qe2
{[%clk 0:01:19.4]} 26... Qd3 {[%clk 0:00:24.6]} 27. Qe1 {[%clk 0:01:12.7]} 27...
c3 {[%clk 0:00:24.9]} 28. Qc1 {[%clk 0:01:08.9]} 28... Kb8 {[%clk 0:00:21.5]}
29. Bc2 {[%clk 0:01:08.1]} 29... Qc4 {[%clk 0:00:20.6]} 30. Bb3 {[%clk
0:01:04.2]} 30... Qe4 {[%clk 0:00:20.1]} 31. Bc2 {[%clk 0:01:02.4]} 31... Qc6
{[%clk 0:00:19.4]} 32. Qa3 {[%clk 0:00:56.1]} 32... Bd5 {[%clk 0:00:19.3]} 33.
Rfc1 {[%clk 0:00:45.4]} 33... Bxf3 {[%clk 0:00:19.3]} 34. gxf3 {[%clk
0:00:45.7]} 34... Qxf3 {[%clk 0:00:19.9]} 35. Bd1 {[%clk 0:00:26.9]} 35... Qe4
{[%clk 0:00:19]} 36. Bc2 {[%clk 0:00:26.4]} 36... Qf3 {[%clk 0:00:19.2]} 37. Bd1
{[%clk 0:00:26.7]} 37... Qc6 {[%clk 0:00:19.8]} 38. Ba4 {[%clk 0:00:23.9]} 38...
Qa6 {[%clk 0:00:17.7]} 39. Qe7 {[%clk 0:00:19.2]} 39... Rd2 {[%clk 0:00:13.2]}
40. Qxf7 {[%clk 0:00:16.2]} 40... Be5 {[%clk 0:00:12.4]} 41. Bd7 {[%clk
0:00:14.7]} 41... Rd8 {[%clk 0:00:11.4]} 42. Bg4 {[%clk 0:00:11.1]} 42... R2d6
{[%clk 0:00:07.3]} 43. Qe7 {[%clk 0:00:10.9]} 43... Bf6 {[%clk 0:00:06.7]} 44.
Qf7 {[%clk 0:00:10.2]} 44... Rb6 {[%clk 0:00:07.2]} 45. Rxb6 {[%clk 0:00:06.8]}
45... Qxb6 {[%clk 0:00:08.1]} 46. Bf3 {[%clk 0:00:07.1]} 46... Be5 {[%clk
0:00:07.3]} 47. Qh7 {[%clk 0:00:05.8]} 47... Bc7 {[%clk 0:00:07.6]} 48. Rb1
{[%clk 0:00:06]} 48... c2 {[%clk 0:00:07.9]} 49. Qxc2 {[%clk 0:00:04.5]} 49...
Qa6 {[%clk 0:00:04]} 50. Rxb7+ {[%clk 0:00:04.6]} 50... Qxb7 {[%clk 0:00:04.9]}
51. Bxb7 {[%clk 0:00:04.6]} 51... Kxb7 {[%clk 0:00:05.8]} 52. Qb3+ {[%clk
0:00:05.3]} 52... Kc8 {[%clk 0:00:06.2]} 53. Qe6+ {[%clk 0:00:05.5]} 53... Kb7
{[%clk 0:00:06.8]} 54. Qxh6 {[%clk 0:00:06.4]} 54... Rd5 {[%clk 0:00:07.3]} 55.
Qg6 {[%clk 0:00:05.3]} 55... Rc5 {[%clk 0:00:07.8]} 56. Kg2 {[%clk 0:00:05.7]}
56... a5 {[%clk 0:00:07.8]} 57. Qe4+ {[%clk 0:00:06.1]} 57... Kb6 {[%clk
0:00:08.1]} 58. Qd4 {[%clk 0:00:06.5]} 58... Kc6 {[%clk 0:00:07.9]} 59. Qf6+
{[%clk 0:00:06.6]} 59... Kb5 {[%clk 0:00:08]} 60. Qb2+ {[%clk 0:00:07.2]} 60...
Kc6 {[%clk 0:00:08.2]} 61. a4 {[%clk 0:00:07.6]} 61... Bd6 {[%clk 0:00:08.2]}
62. Qf6 {[%clk 0:00:08.1]} 62... Kd5 {[%clk 0:00:08.2]} 63. Qf7+ {[%clk
0:00:08.3]} 63... Kc6 {[%clk 0:00:08.3]} 64. Qe8+ {[%clk 0:00:08.5]} 64... Kb6
{[%clk 0:00:08.2]} 65. Qd8+ {[%clk 0:00:08]} 65... Bc7 {[%clk 0:00:08.3]} 66.
Qe8 {[%clk 0:00:08.1]} 66... Re5 {[%clk 0:00:07.6]} 67. Qa8 {[%clk 0:00:07.7]}
67... Kc5 {[%clk 0:00:07]} 68. Qa6 {[%clk 0:00:07]} 68... Rd5 {[%clk 0:00:02.8]}
69. Qb5+ {[%clk 0:00:06.8]} 69... Kd6 {[%clk 0:00:03.2]} 70. Qa6+ {[%clk
0:00:06.7]} 70... Kd7 {[%clk 0:00:03.7]} 71. f4 {[%clk 0:00:06.8]} 71... g4
{[%clk 0:00:03.4]} 72. Qg6 {[%clk 0:00:05.6]} 72... Rd2+ {[%clk 0:00:03.5]} 73.
Kf1 {[%clk 0:00:06]} 73... Bd6 {[%clk 0:00:03.1]} 74. Qxg4+ {[%clk 0:00:05.7]}
74... Kc6 {[%clk 0:00:03.6]} 75. Qf5 {[%clk 0:00:06.4]} 75... Bc5 {[%clk
0:00:03.6]} 76. Qe4+ {[%clk 0:00:06.1]} 76... Kb6 {[%clk 0:00:03.2]} 77. g4
{[%clk 0:00:06.6]} 77... Rb2 {[%clk 0:00:02]} 78. g5 {[%clk 0:00:07]} 78... Rb4
{[%clk 0:00:01.8]} 79. Qe6+ {[%clk 0:00:07.2]} 79... Kc7 {[%clk 0:00:02.2]} 80.
Qe8 {[%clk 0:00:06.9]} 80... Rb6 {[%clk 0:00:02.4]} 81. Qf7+ {[%clk 0:00:06]}
81... Kc6 {[%clk 0:00:02.3]} 82. g6 {[%clk 0:00:06.9]} 82... Rb1+ {[%clk
0:00:02.7]} 83. Kf2 {[%clk 0:00:06.7]} 83... Rb2+ {[%clk 0:00:02.9]} 84. Kf3
{[%clk 0:00:06.9]} 84... Rb7 {[%clk 0:00:03.2]} 85. Qe6+ {[%clk 0:00:07.1]}
85... Bd6 {[%clk 0:00:03.8]} 86. f5 {[%clk 0:00:07.1]} 86... Kc5 {[%clk
0:00:04.2]} 87. Qe4 {[%clk 0:00:07.1]} 87... Re7 {[%clk 0:00:04.2]} 88. Qd4+
{[%clk 0:00:07.3]} 88... Kc6 {[%clk 0:00:04.3]} 89. Qc4+ {[%clk 0:00:07.3]}
89... Kd7 {[%clk 0:00:04.2]} 90. e4 {[%clk 0:00:07.7]} 90... Be5 {[%clk
0:00:04.2]} 91. Qb5+ {[%clk 0:00:07.8]} 91... Kd6 {[%clk 0:00:04.1]} 92. Qd5+
{[%clk 0:00:07.7]} 92... Kc7 {[%clk 0:00:05]} 93. Qxa5+ {[%clk 0:00:07.7]} 93...
Kd7 {[%clk 0:00:05.2]} 94. Qd5+ {[%clk 0:00:08.6]} 94... Kc7 {[%clk 0:00:05.3]}
95. Kg4 {[%clk 0:00:08.8]} 95... Re8 {[%clk 0:00:04.5]} 96. Kg5 {[%clk 0:00:08]}
96... Ba1 {[%clk 0:00:03.4]} 97. f6 {[%clk 0:00:07.7]} 97... Rxe4 {[%clk
0:00:03.1]} 98. Qxe4 {[%clk 0:00:07.4]} 1-0

[Event "*** Titled Tuesday Blitz"]
[Site "Chess.com"]
[Date "2021.02.02"]
[Round "8"]
[White "GigaQuparadze"]
[Black "kleopl"]
[Result "1-0"]
[WhiteElo "2963"]
[BlackElo "2510"]
[TimeControl "180+1"]
[EndTime "11:32:39 PST"]
[Termination "GigaQuparadze won on time"]

1. e4 {[%clk 0:03:00.9]} 1... c6 {[%clk 0:02:59.2]} 2. d4 {[%clk 0:02:59.6]}
2... d5 {[%clk 0:03:00.1]} 3. Nc3 {[%clk 0:03:00]} 3... a6 {[%clk 0:03:00.1]} 4.
Nf3 {[%clk 0:02:59.8]} 4... Bg4 {[%clk 0:02:59.7]} 5. h3 {[%clk 0:02:58.5]} 5...
Bh5 {[%clk 0:02:58.6]} 6. Be3 {[%clk 0:02:57.2]} 6... e6 {[%clk 0:02:57.4]} 7.
Be2 {[%clk 0:02:56.6]} 7... Nf6 {[%clk 0:02:56.8]} 8. e5 {[%clk 0:02:56.6]} 8...
Nfd7 {[%clk 0:02:56.9]} 9. O-O {[%clk 0:02:56.1]} 9... Bxf3 {[%clk 0:02:53.1]}
10. Bxf3 {[%clk 0:02:56]} 10... c5 {[%clk 0:02:53.6]} 11. Be2 {[%clk 0:02:46.6]}
11... cxd4 {[%clk 0:02:50]} 12. Bxd4 {[%clk 0:02:42.6]} 12... Nc6 {[%clk
0:02:50.1]} 13. Re1 {[%clk 0:02:34.9]} 13... Qc7 {[%clk 0:02:47]} 14. Bf1 {[%clk
0:02:31.2]} 14... Bb4 {[%clk 0:02:41.6]} 15. a3 {[%clk 0:02:26.7]} 15... Ba5
{[%clk 0:02:20.2]} 16. Kh1 {[%clk 0:01:56.9]} 16... Rc8 {[%clk 0:02:12.1]} 17.
Rb1 {[%clk 0:01:40.6]} 17... Nxd4 {[%clk 0:02:05]} 18. Qxd4 {[%clk 0:01:41.5]}
18... Bxc3 {[%clk 0:02:05.2]} 19. bxc3 {[%clk 0:01:42.1]} 19... b5 {[%clk
0:02:04.9]} 20. Re3 {[%clk 0:01:39.2]} 20... Nc5 {[%clk 0:01:56.3]} 21. Bd3
{[%clk 0:01:14.8]} 21... h5 {[%clk 0:01:45.8]} 22. Be2 {[%clk 0:00:33.1]} 22...
Ne4 {[%clk 0:01:29.9]} 23. Bf3 {[%clk 0:00:32.2]} 23... Nxc3 {[%clk 0:01:20.8]}
24. Rb3 {[%clk 0:00:31]} 24... Na4 {[%clk 0:01:20]} 25. Qh4 {[%clk 0:00:30.5]}
25... Qxc2 {[%clk 0:01:10.2]} 26. Kh2 {[%clk 0:00:30.3]} 26... g6 {[%clk
0:00:20.5]} 27. Qf6 {[%clk 0:00:27.5]} 27... Rf8 {[%clk 0:00:20.4]} 28. Bxd5
{[%clk 0:00:27.6]} 28... Nc5 {[%clk 0:00:15.2]} 29. Rbc3 {[%clk 0:00:26.4]}
29... Qf5 {[%clk 0:00:14.4]} 30. Bb7 {[%clk 0:00:24.8]} 30... Qxf6 {[%clk
0:00:13.3]} 31. exf6 {[%clk 0:00:24.3]} 31... Rc7 {[%clk 0:00:13.7]} 32. Bf3
{[%clk 0:00:21.6]} 32... Kd7 {[%clk 0:00:13.9]} 33. Re1 {[%clk 0:00:21.9]} 33...
Rd8 {[%clk 0:00:13.6]} 34. Rec1 {[%clk 0:00:21.4]} 34... Rdc8 {[%clk 0:00:12.2]}
35. Be2 {[%clk 0:00:20.2]} 35... Nb7 {[%clk 0:00:11.2]} 36. Rd1+ {[%clk
0:00:19.8]} 36... Ke8 {[%clk 0:00:11.2]} 37. Rcd3 {[%clk 0:00:20.2]} 37... Nc5
{[%clk 0:00:11.2]} 38. Rd6 {[%clk 0:00:19.5]} 38... Ne4 {[%clk 0:00:11.1]} 39.
Rxa6 {[%clk 0:00:19.6]} 39... Nxf6 {[%clk 0:00:11.3]} 40. Bxb5+ {[%clk
0:00:19.8]} 40... Kf8 {[%clk 0:00:11]} 41. Ra4 {[%clk 0:00:20.2]} 41... Nd5
{[%clk 0:00:11.1]} 42. Rd2 {[%clk 0:00:17.4]} 42... Nc3 {[%clk 0:00:11.1]} 43.
Rb4 {[%clk 0:00:16.7]} 43... Nxb5 {[%clk 0:00:11]} 44. Rxb5 {[%clk 0:00:17.6]}
44... Ra7 {[%clk 0:00:11.5]} 45. Ra2 {[%clk 0:00:17.1]} 45... Ra4 {[%clk
0:00:10.7]} 46. Rb4 {[%clk 0:00:16.8]} 46... Rca8 {[%clk 0:00:10.6]} 47. Rxa4
{[%clk 0:00:17.1]} 47... Rxa4 {[%clk 0:00:11.5]} 48. Kg3 {[%clk 0:00:17.7]}
48... Ke7 {[%clk 0:00:12.1]} 49. Kf3 {[%clk 0:00:18.2]} 49... Kd6 {[%clk
0:00:12.6]} 50. Ke3 {[%clk 0:00:18.8]} 50... Kd5 {[%clk 0:00:13]} 51. Kd3 {[%clk
0:00:19.3]} 51... e5 {[%clk 0:00:13.6]} 52. Kc3 {[%clk 0:00:19.7]} 52... f5
{[%clk 0:00:13.8]} 53. Kb3 {[%clk 0:00:20.2]} 53... Ra8 {[%clk 0:00:13.7]} 54.
Rd2+ {[%clk 0:00:20.2]} 54... Ke4 {[%clk 0:00:13.4]} 55. a4 {[%clk 0:00:20.1]}
55... f4 {[%clk 0:00:12]} 56. Re2+ {[%clk 0:00:19.9]} 56... Kf5 {[%clk
0:00:12.1]} 57. f3 {[%clk 0:00:19.8]} 57... g5 {[%clk 0:00:12.4]} 58. Kb4 {[%clk
0:00:20.3]} 58... Rb8+ {[%clk 0:00:12.3]} 59. Kc5 {[%clk 0:00:20.4]} 59... Rc8+
{[%clk 0:00:10.2]} 60. Kb6 {[%clk 0:00:20]} 60... Rb8+ {[%clk 0:00:10.3]} 61.
Kc7 {[%clk 0:00:20.1]} 61... Ra8 {[%clk 0:00:09.2]} 62. Ra2 {[%clk 0:00:20.1]}
62... e4 {[%clk 0:00:09.5]} 63. fxe4+ {[%clk 0:00:19.8]} 63... Kxe4 {[%clk
0:00:10.4]} 64. a5 {[%clk 0:00:19.8]} 64... g4 {[%clk 0:00:10.3]} 65. hxg4
{[%clk 0:00:20.3]} 65... hxg4 {[%clk 0:00:11.2]} 66. Kb6 {[%clk 0:00:20.3]}
66... f3 {[%clk 0:00:11.1]} 67. Ra4+ {[%clk 0:00:20.3]} 67... Kf5 {[%clk
0:00:11.1]} 68. g3 {[%clk 0:00:19.5]} 68... f2 {[%clk 0:00:08.4]} 69. Rf4+
{[%clk 0:00:19]} 69... Ke5 {[%clk 0:00:07.1]} 70. Rxf2 {[%clk 0:00:19.5]} 70...
Rb8+ {[%clk 0:00:07.6]} 71. Kc7 {[%clk 0:00:19.7]} 71... Rb3 {[%clk 0:00:08.1]}
72. Ra2 {[%clk 0:00:19.4]} 72... Rxg3 {[%clk 0:00:07.1]} 73. a6 {[%clk
0:00:19.7]} 73... Rh3 {[%clk 0:00:07.6]} 74. a7 {[%clk 0:00:19.3]} 74... Rh7+
{[%clk 0:00:07.3]} 75. Kc6 {[%clk 0:00:19.3]} 75... Rxa7 {[%clk 0:00:06.6]} 76.
Rxa7 {[%clk 0:00:19.7]} 76... g3 {[%clk 0:00:07]} 77. Ra2 {[%clk 0:00:19.1]}
77... Kf4 {[%clk 0:00:07]} 78. Kd5 {[%clk 0:00:19.2]} 78... Kf3 {[%clk
0:00:07.2]} 79. Ra3+ {[%clk 0:00:19.7]} 79... Kf2 {[%clk 0:00:06.1]} 80. Ke4
{[%clk 0:00:19.5]} 80... g2 {[%clk 0:00:06.3]} 81. Ra2+ {[%clk 0:00:19.4]} 81...
Kf1 {[%clk 0:00:06.2]} 82. Kf3 {[%clk 0:00:19.5]} 82... g1=N+ {[%clk 0:00:06.1]}
83. Ke3 {[%clk 0:00:19.8]} 83... Nh3 {[%clk 0:00:06.3]} 84. Rh2 {[%clk
0:00:19.9]} 84... Ng1 {[%clk 0:00:06.4]} 85. Rf2+ {[%clk 0:00:20]} 85... Ke1
{[%clk 0:00:06.8]} 86. Rb2 {[%clk 0:00:19.9]} 86... Kf1 {[%clk 0:00:07]} 87. Ra2
{[%clk 0:00:19.8]} 87... Nh3 {[%clk 0:00:06.9]} 88. Ra1+ {[%clk 0:00:17.7]}
88... Kg2 {[%clk 0:00:06.4]} 89. Ra8 {[%clk 0:00:18.6]} 89... Ng1 {[%clk
0:00:06]} 90. Rg8+ {[%clk 0:00:17.9]} 90... Kf1 {[%clk 0:00:06.3]} 91. Rg3
{[%clk 0:00:17.7]} 91... Ne2 {[%clk 0:00:05.8]} 92. Rf3+ {[%clk 0:00:18]} 92...
Ke1 {[%clk 0:00:05.7]} 93. Rf2 {[%clk 0:00:18.2]} 93... Ng1 {[%clk 0:00:05.5]}
94. Rf8 {[%clk 0:00:17.8]} 94... Ne2 {[%clk 0:00:04.7]} 95. Ra8 {[%clk
0:00:16.9]} 95... Nc1 {[%clk 0:00:04.4]} 96. Rd8 {[%clk 0:00:14.4]} 96... Ne2
{[%clk 0:00:03.5]} 97. Rc8 {[%clk 0:00:14.6]} 97... Kf1 {[%clk 0:00:02.1]} 98.
Rf8+ {[%clk 0:00:14]} 98... Ke1 {[%clk 0:00:02.1]} 99. Ra8 {[%clk 0:00:14.5]}
99... Kf1 {[%clk 0:00:01.8]} 100. Ra1+ {[%clk 0:00:13.9]} 1-0

[Event "*** Titled Tuesday Blitz"]
[Site "Chess.com"]
[Date "2021.02.02"]
[Round "8"]
[White "sorrm8thatscheckm8"]
[Black "KeithArkell"]
[Result "0-1"]
[WhiteElo "2544"]
[BlackElo "2450"]
[TimeControl "180+1"]
[EndTime "11:32:48 PST"]
[Termination "KeithArkell won on time"]

1. d4 {[%clk 0:02:59.6]} 1... e6 {[%clk 0:02:57.2]} 2. c4 {[%clk 0:03:00.1]}
2... Bb4+ {[%clk 0:02:55.7]} 3. Bd2 {[%clk 0:02:59.6]} 3... Bxd2+ {[%clk
0:02:54.7]} 4. Nxd2 {[%clk 0:03:00.5]} 4... d6 {[%clk 0:02:53.7]} 5. Ngf3 {[%clk
0:03:01.4]} 5... Qe7 {[%clk 0:02:51.3]} 6. e4 {[%clk 0:03:02]} 6... e5 {[%clk
0:02:51.8]} 7. d5 {[%clk 0:02:52.2]} 7... a5 {[%clk 0:02:51.5]} 8. Bd3 {[%clk
0:02:50.3]} 8... Nd7 {[%clk 0:02:49.6]} 9. h3 {[%clk 0:02:49.3]} 9... Nc5 {[%clk
0:02:49.5]} 10. Bc2 {[%clk 0:02:49.5]} 10... Nf6 {[%clk 0:02:48.3]} 11. g4
{[%clk 0:02:48.1]} 11... h6 {[%clk 0:02:46.7]} 12. Qe2 {[%clk 0:02:47.4]} 12...
Nh7 {[%clk 0:02:45.6]} 13. O-O-O {[%clk 0:02:46.8]} 13... a4 {[%clk 0:02:44.3]}
14. Rdg1 {[%clk 0:02:45.9]} 14... Nf8 {[%clk 0:02:35.4]} 15. h4 {[%clk
0:02:45.2]} 15... Ng6 {[%clk 0:02:35.5]} 16. Ne1 {[%clk 0:02:41.1]} 16... Nf4
{[%clk 0:02:35.4]} 17. Qe3 {[%clk 0:02:40.2]} 17... Bd7 {[%clk 0:02:33.3]} 18.
Ng2 {[%clk 0:02:37.9]} 18... Qf6 {[%clk 0:02:30.7]} 19. Nxf4 {[%clk 0:02:35.1]}
19... exf4 {[%clk 0:02:25.3]} 20. Qc3 {[%clk 0:02:34.6]} 20... Qxc3 {[%clk
0:02:24.8]} 21. bxc3 {[%clk 0:02:35.5]} 21... f6 {[%clk 0:02:22.5]} 22. Nf3
{[%clk 0:02:30.8]} 22... Ke7 {[%clk 0:02:20.6]} 23. Nd4 {[%clk 0:02:08]} 23...
g5 {[%clk 0:02:18]} 24. a3 {[%clk 0:02:05.2]} 24... Rag8 {[%clk 0:02:06.8]} 25.
f3 {[%clk 0:02:02.8]} 25... Ra8 {[%clk 0:01:58.5]} 26. Kd2 {[%clk 0:02:00.1]}
26... Kf7 {[%clk 0:01:47.7]} 27. Rb1 {[%clk 0:01:53.9]} 27... Kg7 {[%clk
0:01:46.5]} 28. Ne2 {[%clk 0:01:48.3]} 28... b6 {[%clk 0:01:46]} 29. Rbg1 {[%clk
0:01:44.7]} 29... Be8 {[%clk 0:01:45.3]} 30. hxg5 {[%clk 0:01:42.6]} 30... hxg5
{[%clk 0:01:45]} 31. Rxh8 {[%clk 0:01:38.2]} 31... Kxh8 {[%clk 0:01:45.9]} 32.
Rh1+ {[%clk 0:01:39]} 32... Kg7 {[%clk 0:01:46.2]} 33. Nd4 {[%clk 0:01:39.9]}
33... Bd7 {[%clk 0:01:46.6]} 34. Bd3 {[%clk 0:01:30]} 34... Rb8 {[%clk
0:01:41.1]} 35. Bc2 {[%clk 0:01:28.4]} 35... Ra8 {[%clk 0:01:40.4]} 36. Nb5
{[%clk 0:01:24.8]} 36... Bxb5 {[%clk 0:01:39.8]} 37. cxb5 {[%clk 0:01:25.3]}
37... Nd7 {[%clk 0:01:39.6]} 38. Bd3 {[%clk 0:01:23.6]} 38... Ne5 {[%clk
0:01:39.6]} 39. Be2 {[%clk 0:01:23.4]} 39... Ra5 {[%clk 0:01:32.6]} 40. c4
{[%clk 0:01:21.7]} 40... Ra8 {[%clk 0:01:32.3]} 41. Kc3 {[%clk 0:01:17.2]} 41...
Rf8 {[%clk 0:01:32.2]} 42. Kb4 {[%clk 0:01:15.3]} 42... Ra8 {[%clk 0:01:32.7]}
43. Rh3 {[%clk 0:01:05.4]} 43... Nd7 {[%clk 0:01:33.1]} 44. Bd1 {[%clk
0:01:00.9]} 44... Nc5 {[%clk 0:01:33]} 45. Bc2 {[%clk 0:01:00.3]} 45... Rh8
{[%clk 0:01:24.9]} 46. Rxh8 {[%clk 0:00:53.2]} 46... Kxh8 {[%clk 0:01:25.8]} 47.
Bxa4 {[%clk 0:00:50.9]} 47... Kg7 {[%clk 0:01:23.4]} 48. Bc2 {[%clk 0:00:48.6]}
48... Kf7 {[%clk 0:01:05.3]} 49. a4 {[%clk 0:00:47]} 49... Nb7 {[%clk
0:01:05.3]} 50. Bd1 {[%clk 0:00:44.5]} 50... Ke7 {[%clk 0:01:05.6]} 51. Bb3
{[%clk 0:00:40.4]} 51... Na5 {[%clk 0:01:05.5]} 52. Bc2 {[%clk 0:00:38.9]} 52...
Kd8 {[%clk 0:01:05.5]} 53. e5 {[%clk 0:00:29.8]} 53... fxe5 {[%clk 0:00:59.8]}
54. Kc3 {[%clk 0:00:28.8]} 54... Ke7 {[%clk 0:00:58.5]} 55. Bg6 {[%clk
0:00:24.6]} 55... Kf6 {[%clk 0:00:58.1]} 56. Bf5 {[%clk 0:00:21.3]} 56... Nb7
{[%clk 0:00:58.4]} 57. Be4 {[%clk 0:00:19.7]} 57... Nc5 {[%clk 0:00:58.4]} 58.
Bc2 {[%clk 0:00:18.1]} 58... e4 {[%clk 0:00:43.5]} 59. Bxe4 {[%clk 0:00:16.8]}
59... Nxa4+ {[%clk 0:00:42.4]} 60. Kd4 {[%clk 0:00:15.8]} 60... Nc5 {[%clk
0:00:42.5]} 61. Bc2 {[%clk 0:00:15.7]} 61... Nd7 {[%clk 0:00:41.8]} 62. Bf5
{[%clk 0:00:15.7]} 62... Ne5 {[%clk 0:00:40.6]} 63. Be4 {[%clk 0:00:16.2]} 63...
Nf7 {[%clk 0:00:39]} 64. Bf5 {[%clk 0:00:15.7]} 64... Ke7 {[%clk 0:00:37.3]} 65.
Be4 {[%clk 0:00:15.7]} 65... Nh8 {[%clk 0:00:29.9]} 66. Bf5 {[%clk 0:00:14.5]}
66... Kf6 {[%clk 0:00:28.9]} 67. Be4 {[%clk 0:00:13.1]} 67... Nf7 {[%clk
0:00:28.8]} 68. Bh7 {[%clk 0:00:13.3]} 68... Nd8 {[%clk 0:00:23.8]} 69. Bf5
{[%clk 0:00:12.8]} 69... Nb7 {[%clk 0:00:23.2]} 70. Bc2 {[%clk 0:00:12]} 70...
Nc5 {[%clk 0:00:22.9]} 71. Bd1 {[%clk 0:00:11.3]} 71... Kg6 {[%clk 0:00:20.6]}
72. Bc2+ {[%clk 0:00:11.2]} 72... Kg7 {[%clk 0:00:21]} 73. Bf5 {[%clk
0:00:11.7]} 73... Kf6 {[%clk 0:00:21.9]} 74. Bc2 {[%clk 0:00:11.4]} 74... Nd7
{[%clk 0:00:22]} 75. Bb1 {[%clk 0:00:09.7]} 75... Ne5 {[%clk 0:00:19.5]} 76. Be4
{[%clk 0:00:09.8]} 76... Nd7 {[%clk 0:00:15.1]} 77. Kc3 {[%clk 0:00:08.9]} 77...
Ke5 {[%clk 0:00:14.6]} 78. Bh7 {[%clk 0:00:07.1]} 78... Nc5 {[%clk 0:00:14.5]}
79. Bc2 {[%clk 0:00:06.7]} 79... Nb7 {[%clk 0:00:14]} 80. Bh7 {[%clk 0:00:06.9]}
80... Nc5 {[%clk 0:00:13.4]} 81. Bc2 {[%clk 0:00:07.4]} 81... Nd7 {[%clk
0:00:13.7]} 82. Bh7 {[%clk 0:00:07.4]} 82... Nf6 {[%clk 0:00:14.2]} 83. Bd3
{[%clk 0:00:06.8]} 83... Ng8 {[%clk 0:00:10.8]} 84. Bh7 {[%clk 0:00:06.5]} 84...
Ne7 {[%clk 0:00:11.3]} 85. Bd3 {[%clk 0:00:06.8]} 85... Kf6 {[%clk 0:00:11.4]}
86. Kd4 {[%clk 0:00:06.3]} 86... Ng6 {[%clk 0:00:09.5]} 87. Be4 {[%clk
0:00:05.4]} 87... Nh4 {[%clk 0:00:08.9]} 88. Kd3 {[%clk 0:00:05]} 88... Ke5
{[%clk 0:00:09.1]} 89. Kc3 {[%clk 0:00:04.4]} 89... Ng2 {[%clk 0:00:09.2]} 90.
Kd3 {[%clk 0:00:04.7]} 90... Ne3 {[%clk 0:00:10.1]} 91. Kc3 {[%clk 0:00:04.2]}
91... Nxg4 {[%clk 0:00:10.3]} 92. Bh7 {[%clk 0:00:03.3]} 92... Nf6 {[%clk
0:00:10.5]} 93. Bd3 {[%clk 0:00:02.6]} 93... g4 {[%clk 0:00:10.9]} 94. fxg4
{[%clk 0:00:03.5]} 94... Nxg4 {[%clk 0:00:11.8]} 95. Kd2 {[%clk 0:00:04.4]}
95... Kd4 {[%clk 0:00:12]} 96. Be2 {[%clk 0:00:05]} 96... Ne5 {[%clk 0:00:12.9]}
0-1

[Event "*** Titled Tuesday Blitz"]
[Site "Chess.com"]
[Date "2021.02.02"]
[Round "9"]
[White "Sergey85Rodchenkov"]
[Black "Camels1981"]
[Result "1-0"]
[WhiteElo "2501"]
[BlackElo "2290"]
[TimeControl "180+1"]
[EndTime "11:41:17 PST"]
[Termination "Sergey85Rodchenkov won by checkmate"]

1. e4 {[%clk 0:03:00.9]} 1... c5 {[%clk 0:02:54.9]} 2. Nf3 {[%clk 0:03:00.6]}
2... d6 {[%clk 0:02:52.1]} 3. d4 {[%clk 0:03:00.1]} 3... cxd4 {[%clk 0:02:50.4]}
4. Nxd4 {[%clk 0:03:00.4]} 4... Nf6 {[%clk 0:02:50.8]} 5. Nc3 {[%clk 0:03:00]}
5... a6 {[%clk 0:02:50.1]} 6. Bc4 {[%clk 0:02:59.8]} 6... e6 {[%clk 0:02:49.9]}
7. Bb3 {[%clk 0:02:59.3]} 7... Nbd7 {[%clk 0:02:49.3]} 8. f4 {[%clk 0:02:58.4]}
8... Nc5 {[%clk 0:02:48.9]} 9. f5 {[%clk 0:02:58.4]} 9... Nxb3 {[%clk
0:02:47.6]} 10. axb3 {[%clk 0:02:57.7]} 10... e5 {[%clk 0:02:47.8]} 11. Nde2
{[%clk 0:02:57]} 11... Be7 {[%clk 0:02:47.8]} 12. Bg5 {[%clk 0:02:56.9]} 12...
O-O {[%clk 0:02:46.7]} 13. Bxf6 {[%clk 0:02:56.2]} 13... Bxf6 {[%clk 0:02:46.7]}
14. O-O {[%clk 0:02:57]} 14... b5 {[%clk 0:02:36.2]} 15. Ng3 {[%clk 0:02:56.5]}
15... Bb7 {[%clk 0:02:34.6]} 16. Nh5 {[%clk 0:02:56.1]} 16... Rc8 {[%clk
0:02:31.4]} 17. Qg4 {[%clk 0:02:51.8]} 17... Kh8 {[%clk 0:02:15.2]} 18. Rfd1
{[%clk 0:02:48]} 18... b4 {[%clk 0:02:11.4]} 19. Nd5 {[%clk 0:02:47.4]} 19...
Bxd5 {[%clk 0:02:11.2]} 20. Rxd5 {[%clk 0:02:47.9]} 20... Rxc2 {[%clk
0:02:11.1]} 21. Rxa6 {[%clk 0:02:47.2]} 21... Bg5 {[%clk 0:01:58.1]} 22. h4
{[%clk 0:02:45.3]} 22... Be3+ {[%clk 0:01:58]} 23. Kh2 {[%clk 0:02:44.8]} 23...
Bc5 {[%clk 0:01:57.8]} 24. Qxg7# {[%clk 0:02:44.1]} 1-0

[Event "*** Titled Tuesday Blitz"]
[Site "Chess.com"]
[Date "2021.02.02"]
[Round "9"]
[White "Blitzking642"]
[Black "Gerryisplaying"]
[Result "0-1"]
[WhiteElo "2455"]
[BlackElo "2333"]
[TimeControl "180+1"]
[EndTime "11:41:50 PST"]
[Termination "Gerryisplaying won by resignation"]

1. e4 {[%clk 0:03:00.9]} 1... d5 {[%clk 0:02:59.4]} 2. exd5 {[%clk 0:03:00.3]}
2... Qxd5 {[%clk 0:03:00.3]} 3. Nc3 {[%clk 0:03:00.4]} 3... Qa5 {[%clk
0:02:59.1]} 4. d4 {[%clk 0:02:59.9]} 4... Nf6 {[%clk 0:02:58.6]} 5. Bc4 {[%clk
0:02:59.6]} 5... Bg4 {[%clk 0:02:50.7]} 6. Ne2 {[%clk 0:02:51.2]} 6... e6 {[%clk
0:02:46.5]} 7. Bd2 {[%clk 0:02:35.5]} 7... Qb6 {[%clk 0:02:42.6]} 8. h3 {[%clk
0:02:20.9]} 8... Bxe2 {[%clk 0:02:36.6]} 9. Qxe2 {[%clk 0:02:17.8]} 9... Nc6
{[%clk 0:02:36.7]} 10. Be3 {[%clk 0:01:37.3]} 10... Qxb2 {[%clk 0:02:29.4]} 11.
Kd2 {[%clk 0:01:37.8]} 11... Bb4 {[%clk 0:02:27.3]} 12. Rab1 {[%clk 0:01:28.7]}
12... Bxc3+ {[%clk 0:02:10.1]} 0-1